fUSD/lending_fUSD_20260504
["ID","MTS","AMOUNT","RATE_DAILY","PERIOD"]
[421560012,1777885833000,-300.0,0.00027397,2]
[421560016,1777885833000,-317.82,0.000274,2]
[421560021,1777885833000,-1015.37,0.00027574,2]
[421560022,1777885833000,-230.18,0.00027805,2]
[421560047,1777885833000,-500.0,0.00030158,5]
[421560099,1777885833000,-500.0,0.00031456,21]
[421560046,1777885833000,-154.36715609,0.00030137,2]
[421560081,1777885833000,-151.0,0.00031183,7]
[421560087,1777885833000,-172.0,0.00031184,30]
[421560084,1777885833000,-153.0,0.00031183,30]
[421560085,1777885833000,-587.0,0.00031183,30]
[421560083,1777885833000,-151.0,0.00031183,30]
[421560082,1777885833000,-151.0,0.00031183,7]
[421560090,1777885833000,-587.0,0.00031184,30]
[421560100,1777885833000,-151.0,0.00031456,7]
[421560089,1777885833000,-154.0,0.00031184,30]
[421560091,1777885833000,-159.0,0.00031184,30]
[421560092,1777885833000,-500.0,0.00031217,5]
[421560094,1777885833000,-492.23,0.00031366,60]
[421560086,1777885833000,-164.0,0.00031183,30]
[421560097,1777885833000,-255.52,0.00031437,2]
[421560093,1777885833000,-500.0,0.00031217,5]
[421560095,1777885833000,-500.0,0.0003137,2]
[421560098,1777885833000,-1100.0,0.00031456,21]
[421560101,1777885833000,-234.354613,0.00031541,14]
[421560104,1777885833000,-500.0,0.00031566,60]
[421560103,1777885833000,-500.0,0.00031566,2]
[421560106,1777885833000,-300.2535572,0.00031592,7]
[421560107,1777885833000,-500.0,0.00031668,6]
[421560108,1777885833000,-2316.32830946,0.00031745,2]
[421560105,1777885833000,-610.6,0.00031566,60]
[421560102,1777885833000,-502.31414573,0.00031566,60]
[421560109,1777885833000,-1000.0,0.00031765,5]
[421560049,1777885833000,-900.82271512,0.0003057,2]
[421560077,1777885833000,-227.133968,0.00030947,7]
[421560096,1777885833000,-1000.0,0.000314,7]
[421560080,1777885833000,-150.0,0.00031011,2]
[421560079,1777885833000,-227.133968,0.00030947,7]
[421560050,1777885833000,-1030.268,0.00030911,27]
[421560055,1777885833000,-3434.875341,0.00030947,7]
[421560053,1777885833000,-2000.0,0.00030947,2]
[421560057,1777885833000,-3434.875341,0.00030947,7]
[421560058,1777885833000,-853.065096,0.00030947,7]
[421560056,1777885833000,-3434.875341,0.00030947,7]
[421560054,1777885833000,-3434.875341,0.00030947,7]
[421560062,1777885833000,-308.383762,0.00030947,7]
[421560064,1777885833000,-853.065096,0.00030947,7]
[421560065,1777885833000,-308.383762,0.00030947,7]
[421560060,1777885833000,-151.0,0.00030947,7]
[421560059,1777885833000,-308.383762,0.00030947,7]
[421560063,1777885833000,-151.0,0.00030947,7]
[421560066,1777885833000,-162.48539177,0.00030947,7]
[421560088,1777885833000,-159.0,0.00031184,30]
[421560061,1777885833000,-853.065096,0.00030947,7]
[421560078,1777885833000,-227.133968,0.00030947,7]
[421560075,1777885833000,-152.150391,0.00030947,7]
[421560074,1777885833000,-151.0,0.00030947,7]
[421560072,1777885833000,-151.0,0.00030947,7]
[421560073,1777885833000,-151.0,0.00030947,7]
[421560069,1777885833000,-308.383762,0.00030947,7]
[421560071,1777885833000,-232.123768,0.00030947,7]
[421560067,1777885833000,-151.0,0.00030947,7]
[421560070,1777885833000,-151.0,0.00030947,7]
[421560068,1777885833000,-853.065096,0.00030947,7]
[421560076,1777885833000,-227.133968,0.00030947,7]
[421560128,1777885834000,-151.0,0.0003226,7]
[421560132,1777885834000,-279.414064,0.0003226,7]
[421560127,1777885834000,-7332.55461546,0.0003226,2]
[421560130,1777885834000,-279.414064,0.0003226,7]
[421560131,1777885834000,-279.414064,0.0003226,7]
[421560129,1777885834000,-279.414064,0.0003226,7]
[421560141,1777885834000,-500.0,0.0003237,2]
[421560135,1777885834000,-248.0,0.0003228,2]
[421560136,1777885834000,-248.0,0.00032303,2]
[421560133,1777885834000,-151.0,0.00032278,7]
[421560138,1777885834000,-1500.0,0.00032313,5]
[421560137,1777885834000,-1500.0,0.00032313,5]
[421560126,1777885834000,-287.06431718,0.0003226,2]
[421560134,1777885834000,-1100.0,0.00032278,21]
[421560124,1777885834000,-596.9,0.0003221,5]
[421560110,1777885834000,-1000.0,0.00031765,5]
[421560119,1777885834000,-159.0,0.00032184,30]
[421560120,1777885834000,-154.0,0.00032184,30]
[421560118,1777885834000,-172.0,0.00032184,30]
[421560117,1777885834000,-299.0,0.00032184,7]
[421560123,1777885834000,-154.36715609,0.00032192,2]
[421560122,1777885834000,-159.0,0.00032184,30]
[421560116,1777885834000,-164.0,0.00032183,30]
[421560112,1777885834000,-2463.0,0.00032137,2]
[421560115,1777885834000,-587.0,0.00032183,30]
[421560114,1777885834000,-153.0,0.00032183,30]
[421560121,1777885834000,-587.0,0.00032184,30]
[421560113,1777885834000,-151.0,0.00032183,30]
[421560111,1777885834000,-500.0,0.0003197,2]
[421560142,1777885834000,-611.0,0.0003244,5]
[421560125,1777885834000,-261.58509976,0.0003226,2]
[421560140,1777885834000,-4007.77962687,0.0003234,2]
[421560153,1777885834000,-308.383762,0.0003244,7]
[421560144,1777885834000,-150.0,0.0003244,2]
[421560139,1777885834000,-333.39786663,0.00032328,2]
[421560174,1777885834000,-151.0,0.00032548,7]
[421560171,1777885834000,-5075.0,0.00032463,7]
[421560173,1777885834000,-292.5,0.00032548,2]
[421560170,1777885834000,-227.133968,0.0003244,7]
[421560172,1777885834000,-162.48539177,0.0003247,7]
[421560168,1777885834000,-227.133968,0.0003244,7]
[421560169,1777885834000,-227.133968,0.0003244,7]
[421560165,1777885834000,-151.0,0.0003244,7]
[421560159,1777885834000,-308.383762,0.0003244,7]
[421560163,1777885834000,-151.0,0.0003244,7]
[421560164,1777885834000,-151.0,0.0003244,7]
[421560162,1777885834000,-308.383762,0.0003244,7]
[421560156,1777885834000,-308.383762,0.0003244,7]
[421560166,1777885834000,-151.0,0.0003244,7]
[421560161,1777885834000,-853.065096,0.0003244,7]
[421560167,1777885834000,-227.133968,0.0003244,7]
[421560158,1777885834000,-853.065096,0.0003244,7]
[421560143,1777885834000,-244.00803256,0.0003244,2]
[421560154,1777885834000,-151.0,0.0003244,7]
[421560145,1777885834000,-12573.94110227,0.0003244,2]
[421560147,1777885834000,-2286.14756508,0.0003244,2]
[421560175,1777885834000,-150.0,0.00032562,2]
[421560152,1777885834000,-853.065096,0.0003244,7]
[421560150,1777885834000,-3434.875341,0.0003244,7]
[421560149,1777885834000,-3434.875341,0.0003244,7]
[421560151,1777885834000,-3434.875341,0.0003244,7]
[421560148,1777885834000,-3434.875341,0.0003244,7]
[421560155,1777885834000,-853.065096,0.0003244,7]
[421560157,1777885834000,-151.0,0.0003244,7]
[421560160,1777885834000,-151.0,0.0003244,7]
[421560146,1777885834000,-150.0,0.0003244,2]
[421560204,1777885835000,-3434.875341,0.00032972,7]
[421560196,1777885835000,-500.0,0.00032877,2]
[421560203,1777885835000,-3434.875341,0.00032972,7]
[421560200,1777885835000,-10258.2913,0.000329,2]
[421560198,1777885835000,-500.0,0.00032877,2]
[421560201,1777885835000,-151.0,0.00032972,7]
[421560197,1777885835000,-500.0,0.00032877,2]
[421560209,1777885835000,-151.0,0.00032972,7]
[421560202,1777885835000,-242.841462,0.00032972,7]
[421560205,1777885835000,-3434.875341,0.00032972,7]
[421560207,1777885835000,-853.065096,0.00032972,7]
[421560206,1777885835000,-3434.875341,0.00032972,7]
[421560213,1777885835000,-853.065096,0.00032972,7]
[421560211,1777885835000,-308.383762,0.00032972,7]
[421560195,1777885835000,-500.0,0.00032877,2]
[421560199,1777885835000,-500.0,0.00032877,2]
[421560193,1777885835000,-349.13,0.00032877,2]
[421560179,1777885835000,-401.97816903,0.00032861,5]
[421560185,1777885835000,-151.0,0.00032877,7]
[421560177,1777885835000,-225.54132,0.000328,7]
[421560212,1777885835000,-151.0,0.00032972,7]
[421560178,1777885835000,-4472.32,0.00032809,2]
[421560180,1777885835000,-2000.0,0.00032861,5]
[421560176,1777885835000,-4897.37610436,0.000328,2]
[421560181,1777885835000,-151.0,0.00032877,7]
[421560182,1777885835000,-151.0,0.00032877,7]
[421560194,1777885835000,-500.0,0.00032877,2]
[421560183,1777885835000,-151.0,0.00032877,7]
[421560189,1777885835000,-151.0,0.00032877,7]
[421560186,1777885835000,-151.0,0.00032877,7]
[421560188,1777885835000,-151.0,0.00032877,7]
[421560191,1777885835000,-151.0,0.00032877,7]
[421560192,1777885835000,-151.0,0.00032877,7]
[421560190,1777885835000,-151.0,0.00032877,7]
[421560187,1777885835000,-151.0,0.00032877,7]
[421560184,1777885835000,-151.0,0.00032877,7]
[421560214,1777885835000,-308.383762,0.00032972,7]
[421560219,1777885835000,-151.0,0.00032972,7]
[421560210,1777885835000,-853.065096,0.00032972,7]
[421560231,1777885835000,-263.95753337,0.00032973,5]
[421560240,1777885835000,-179.714701,0.0003299,7]
[421560237,1777885835000,-500.0,0.00032973,5]
[421560236,1777885835000,-500.0,0.00032973,5]
[421560208,1777885835000,-308.383762,0.00032972,7]
[421560239,1777885835000,-176.75690271,0.00032973,5]
[421560242,1777885835000,-279.414064,0.0003299,7]
[421560234,1777885835000,-500.0,0.00032973,5]
[421560250,1777885835000,-23321.10329799,0.00033,5]
[421560244,1777885835000,-279.414064,0.0003299,7]
[421560243,1777885835000,-279.414064,0.0003299,7]
[421560248,1777885835000,-362.67200652,0.00033,7]
[421560247,1777885835000,-665.0,0.00033,5]
[421560246,1777885835000,-610.6,0.00032999,60]
[421560245,1777885835000,-500.0,0.00032999,2]
[421560249,1777885835000,-52023.80528575,0.00033,2]
[421560241,1777885835000,-279.414064,0.0003299,7]
[421560232,1777885835000,-397.61762584,0.00032973,5]
[421560238,1777885835000,-500.0,0.00032973,5]
[421560235,1777885835000,-500.0,0.00032973,5]
[421560216,1777885835000,-853.065096,0.00032972,7]
[421560233,1777885835000,-501.88868096,0.00032973,5]
[421560218,1777885835000,-151.0,0.00032972,7]
[421560217,1777885835000,-308.383762,0.00032972,7]
[421560220,1777885835000,-151.0,0.00032972,7]
[421560228,1777885835000,-227.133968,0.00032972,7]
[421560221,1777885835000,-219.362542,0.00032972,7]
[421560215,1777885835000,-151.0,0.00032972,7]
[421560227,1777885835000,-227.133968,0.00032972,7]
[421560224,1777885835000,-151.0,0.00032972,7]
[421560222,1777885835000,-151.0,0.00032972,7]
[421560225,1777885835000,-151.0,0.00032972,7]
[421560223,1777885835000,-500.0,0.00032972,2]
[421560229,1777885835000,-227.133968,0.00032972,7]
[421560230,1777885835000,-227.133968,0.00032972,7]
[421560226,1777885835000,-151.0,0.00032972,7]
[421560263,1777885838000,-153.86,0.00028766,7]
[421560265,1777885838000,-161.55,0.00028919,7]
[421560264,1777885838000,-153.86,0.00028859,30]
[421560261,1777885838000,-72.12020071,0.0002831,2]
[421560259,1777885838000,-161.55,0.00027701,30]
[421560260,1777885838000,-89.42979929,0.0002831,2]
[421560253,1777885838000,-161.55,0.00025266,7]
[421560256,1777885838000,-161.55,0.00026484,2]
[421560257,1777885838000,-161.55,0.00027093,7]
[421560258,1777885838000,-411.23,0.00027397,10]
[421560254,1777885838000,-4.2597993,0.00025875,30]
[421560255,1777885838000,-157.2902007,0.00025875,30]
[421560252,1777885838000,-161.55,0.00024658,2]
[421560266,1777885838000,-153.86,0.00028952,2]
[421560262,1777885838000,-153.86,0.00028673,2]
[421560271,1777885838000,-151.0,0.00030947,7]
[421560267,1777885838000,-153.86,0.00029046,7]
[421560290,1777885838000,-151.0,0.00032809,2]
[421560287,1777885838000,-487.57003,0.0003264,31]
[421560280,1777885838000,-487.57003,0.0003244,31]
[421560285,1777885838000,-205.796299,0.0003244,7]
[421560282,1777885838000,-151.0,0.0003244,7]
[421560275,1777885838000,-1544.21887297,0.00031745,2]
[421560274,1777885838000,-199.516276,0.00031615,14]
[421560277,1777885838000,-151.0,0.0003244,7]
[421560272,1777885838000,-151.0,0.00030947,7]
[421560292,1777885838000,-175.55724126,0.00032825,2]
[421560268,1777885838000,-153.86,0.00029139,30]
[421560270,1777885838000,-93.73020071,0.00029232,2]
[421560269,1777885838000,-60.16979929,0.00029232,2]
[421560273,1777885838000,-151.0,0.00030947,7]
[421560323,1777885840000,-161.64,0.00030136,2]
[421560322,1777885840000,-161.55,0.00029528,30]
[421560324,1777885840000,-24.44275874,0.00032825,2]
[421560326,1777885840000,-151.0,0.00032972,7]
[421560327,1777885840000,-151.0,0.00032972,7]
[421560328,1777885840000,-676.4645692,0.00033,5]
[421560329,1777885840000,-1407.52319047,0.00033,5]
[421560330,1777885840000,-2075.70576896,0.00033,5]
[421560325,1777885840000,-487.57003,0.0003284,31]
[421560351,1777885841000,-151.0,0.00033,7]
[421560363,1777885841000,-308.383762,0.00033,7]
[421560362,1777885841000,-853.065096,0.00033,7]
[421560364,1777885841000,-151.0,0.00033,7]
[421560365,1777885841000,-151.0,0.00033,7]
[421560354,1777885841000,-151.0,0.00033,7]
[421560352,1777885841000,-853.065096,0.00033,7]
[421560353,1777885841000,-308.383762,0.00033,7]
[421560358,1777885841000,-308.383762,0.00033,7]
[421560360,1777885841000,-151.0,0.00033,7]
[421560366,1777885841000,-151.0,0.00033,7]
[421560367,1777885841000,-151.0,0.00033,7]
[421560369,1777885841000,-151.0,0.00033,7]
[421560368,1777885841000,-151.0,0.00033,7]
[421560373,1777885841000,-227.133968,0.00033,7]
[421560355,1777885841000,-853.065096,0.00033,7]
[421560349,1777885841000,-853.065096,0.00033,7]
[421560336,1777885841000,-279.414064,0.00033,7]
[421560347,1777885841000,-3434.875341,0.00033,7]
[421560332,1777885841000,-2585.8070064,0.00033,2]
[421560331,1777885841000,-19028.52504116,0.00033,5]
[421560333,1777885841000,-150.000002,0.00033,14]
[421560335,1777885841000,-176.870533,0.00033,7]
[421560334,1777885841000,-151.0,0.00033,7]
[421560337,1777885841000,-279.414064,0.00033,7]
[421560339,1777885841000,-279.414064,0.00033,7]
[421560371,1777885841000,-227.133968,0.00033,7]
[421560338,1777885841000,-279.414064,0.00033,7]
[421560340,1777885841000,-279.414064,0.00033,7]
[421560341,1777885841000,-279.414064,0.00033,7]
[421560342,1777885841000,-279.414064,0.00033,7]
[421560345,1777885841000,-3434.875341,0.00033,7]
[421560343,1777885841000,-279.414064,0.00033,7]
[421560346,1777885841000,-3434.875341,0.00033,7]
[421560344,1777885841000,-151.0,0.00033,7]
[421560348,1777885841000,-3434.875341,0.00033,7]
[421560350,1777885841000,-308.383762,0.00033,7]
[421560375,1777885841000,-227.133968,0.00033,7]
[421560372,1777885841000,-227.133968,0.00033,7]
[421560370,1777885841000,-219.097445,0.00033,7]
[421560397,1777885841000,-200.65703844,0.00033408,5]
[421560400,1777885841000,-489.61753613,0.000335,2]
[421560399,1777885841000,-738.99910779,0.000335,2]
[421560401,1777885841000,-761.26257715,0.00033521,5]
[421560398,1777885841000,-487.57004,0.0003344,31]
[421560403,1777885841000,-1000.0,0.00033521,5]
[421560404,1777885841000,-1000.0,0.00033521,5]
[421560394,1777885841000,-587.0,0.00033184,30]
[421560405,1777885841000,-1000.0,0.00033521,5]
[421560402,1777885841000,-909.23998746,0.00033521,5]
[421560406,1777885841000,-279.414064,0.00033521,7]
[421560374,1777885841000,-227.133968,0.00033,7]
[421560411,1777885841000,-469.45365126,0.00033521,7]
[421560408,1777885841000,-279.414064,0.00033521,7]
[421560412,1777885841000,-358.9418466,0.00033521,7]
[421560410,1777885841000,-151.0,0.00033521,7]
[421560407,1777885841000,-279.414064,0.00033521,7]
[421560392,1777885841000,-159.0,0.00033184,30]
[421560409,1777885841000,-279.414056,0.00033521,7]
[421560395,1777885841000,-159.0,0.00033184,30]
[421560391,1777885841000,-172.0,0.00033184,30]
[421560376,1777885841000,-227.133968,0.00033,7]
[421560379,1777885841000,-162.48539177,0.00033,7]
[421560380,1777885841000,-294.668073,0.00033,7]
[421560381,1777885841000,-489.0,0.00033,30]
[421560377,1777885841000,-227.133968,0.00033,7]
[421560382,1777885841000,-487.57003,0.0003304,31]
[421560386,1777885841000,-4007.77962682,0.0003318,2]
[421560378,1777885841000,-227.13396,0.00033,7]
[421560383,1777885841000,-500.0,0.0003307,2]
[421560385,1777885841000,-500.0,0.00033178,8]
[421560387,1777885841000,-151.0,0.00033183,30]
[421560390,1777885841000,-164.0,0.00033183,30]
[421560388,1777885841000,-153.0,0.00033183,30]
[421560393,1777885841000,-154.0,0.00033184,30]
[421560396,1777885841000,-487.57003,0.0003324,31]
[421560384,1777885841000,-500.0,0.000331,21]
[421560389,1777885841000,-587.0,0.00033183,30]
[421560441,1777885843000,-151.0,0.00033521,7]
[421560447,1777885843000,-457.0,0.00033521,30]
[421560443,1777885843000,-308.383762,0.00033521,7]
[421560446,1777885843000,-308.383762,0.00033521,7]
[421560442,1777885843000,-853.065096,0.00033521,7]
[421560459,1777885843000,-500.0,0.00034068,5]
[421560444,1777885843000,-182.212152,0.00033521,7]
[421560449,1777885843000,-151.0,0.00033779,7]
[421560450,1777885843000,-151.0,0.00033779,7]
[421560448,1777885843000,-200.0,0.00033673,2]
[421560437,1777885843000,-308.383762,0.00033521,7]
[421560445,1777885843000,-853.065086,0.00033521,7]
[421560438,1777885843000,-151.0,0.00033521,7]
[421560430,1777885843000,-143.58292243,0.00032877,2]
[421560440,1777885843000,-308.383762,0.00033521,7]
[421560436,1777885843000,-853.065096,0.00033521,7]
[421560433,1777885843000,-3434.875341,0.00033521,7]
[421560435,1777885843000,-3434.875347,0.00033521,7]
[421560432,1777885843000,-2606.47984314,0.00033521,7]
[421560434,1777885843000,-3434.875341,0.00033521,7]
[421560431,1777885843000,-10.66378003,0.00032877,2]
[421560428,1777885843000,-923.06217108,0.0003201,2]
[421560429,1777885843000,-106.41707757,0.0003201,2]
[421560427,1777885843000,-154.24670246,0.00030137,2]
[421560424,1777885843000,-417.0,0.00024551,2]
[421560425,1777885843000,-679.8488735,0.00027397,2]
[421560451,1777885843000,-151.0,0.00033779,7]
[421560439,1777885843000,-853.065096,0.00033521,7]
[421560460,1777885843000,-1500.0,0.00034068,5]
[421560426,1777885843000,-820.1511265,0.00027397,2]
[421560455,1777885843000,-249.0,0.000339,120]
[421560453,1777885843000,-324.2147822,0.00033781,7]
[421560481,1777885843000,-283.41,0.00034314,2]
[421560483,1777885843000,-283.41,0.00034314,2]
[421560478,1777885843000,-283.41,0.00034312,2]
[421560477,1777885843000,-283.41,0.00034312,2]
[421560480,1777885843000,-283.41,0.00034314,2]
[421560475,1777885843000,-283.41,0.00034312,2]
[421560473,1777885843000,-5000.0,0.00034225,2]
[421560476,1777885843000,-283.41,0.00034312,2]
[421560479,1777885843000,-283.41,0.00034312,2]
[421560474,1777885843000,-283.41,0.00034312,2]
[421560484,1777885843000,-283.41,0.00034314,2]
[421560467,1777885843000,-172.0,0.00034184,30]
[421560466,1777885843000,-164.0,0.00034183,30]
[421560482,1777885843000,-283.41,0.00034314,2]
[421560468,1777885843000,-159.0,0.00034184,30]
[421560469,1777885843000,-154.0,0.00034184,30]
[421560456,1777885843000,-278.0,0.000339,120]
[421560458,1777885843000,-353.7,0.00034058,2]
[421560454,1777885843000,-250.0,0.00033895,7]
[421560457,1777885843000,-4007.77962682,0.0003402,2]
[421560470,1777885843000,-587.0,0.00034184,30]
[421560452,1777885843000,-151.0,0.00033779,7]
[421560472,1777885843000,-150.0,0.0003419,2]
[421560465,1777885843000,-587.0,0.00034183,30]
[421560464,1777885843000,-153.0,0.00034183,30]
[421560461,1777885843000,-1500.0,0.00034068,5]
[421560463,1777885843000,-151.0,0.00034183,30]
[421560471,1777885843000,-159.0,0.00034184,30]
[421560462,1777885843000,-596.9,0.00034182,7]
[421560530,1777885844000,-415.0,0.00034712,90]
[421560529,1777885844000,-610.6,0.00034711,60]
[421560528,1777885844000,-200.0,0.00034689,30]
[421560526,1777885844000,-389.0,0.00034685,90]
[421560524,1777885844000,-389.0,0.00034685,90]
[421560525,1777885844000,-389.0,0.00034685,90]
[421560523,1777885844000,-389.0,0.00034685,90]
[421560522,1777885844000,-389.0,0.00034685,90]
[421560534,1777885844000,-415.0,0.00034712,90]
[421560520,1777885844000,-389.0,0.00034685,90]
[421560527,1777885844000,-389.0,0.00034685,90]
[421560536,1777885844000,-415.0,0.00034712,90]
[421560540,1777885844000,-415.0,0.00034712,90]
[421560539,1777885844000,-415.0,0.00034712,90]
[421560538,1777885844000,-415.0,0.00034712,90]
[421560535,1777885844000,-415.0,0.00034712,90]
[421560532,1777885844000,-415.0,0.00034712,90]
[421560537,1777885844000,-415.0,0.00034712,90]
[421560542,1777885844000,-415.0,0.00034712,90]
[421560545,1777885844000,-415.0,0.00034712,90]
[421560546,1777885844000,-415.0,0.00034712,90]
[421560543,1777885844000,-415.0,0.00034712,90]
[421560544,1777885844000,-415.0,0.00034712,90]
[421560521,1777885844000,-389.0,0.00034685,90]
[421560531,1777885844000,-415.0,0.00034712,90]
[421560518,1777885844000,-389.0,0.00034685,90]
[421560492,1777885844000,-283.41,0.00034316,2]
[421560517,1777885844000,-389.0,0.00034685,90]
[421560485,1777885844000,-283.41,0.00034314,2]
[421560486,1777885844000,-283.41,0.00034314,2]
[421560489,1777885844000,-283.41,0.00034316,2]
[421560487,1777885844000,-283.46,0.00034316,2]
[421560490,1777885844000,-283.41,0.00034316,2]
[421560488,1777885844000,-283.41,0.00034316,2]
[421560496,1777885844000,-795.76,0.00034326,30]
[421560497,1777885844000,-274.13,0.00034326,30]
[421560491,1777885844000,-283.41,0.00034316,2]
[421560499,1777885844000,-3211.53,0.00034326,30]
[421560501,1777885844000,-2000.0,0.00034385,2]
[421560550,1777885844000,-415.0,0.00034712,90]
[421560494,1777885844000,-500.0,0.00034325,2]
[421560493,1777885844000,-283.41,0.00034316,2]
[421560504,1777885844000,-150.0,0.00034521,120]
[421560503,1777885844000,-200.0,0.0003452,2]
[421560506,1777885844000,-161.0,0.00034521,120]
[421560507,1777885844000,-10000.0,0.00034612,2]
[421560509,1777885844000,-2000.0,0.00034616,5]
[421560511,1777885844000,-1210.46501094,0.00034616,5]
[421560512,1777885844000,-389.0,0.00034685,90]
[421560513,1777885844000,-389.0,0.00034685,90]
[421560514,1777885844000,-389.0,0.00034685,90]
[421560515,1777885844000,-389.0,0.00034685,90]
[421560516,1777885844000,-389.0,0.00034685,90]
[421560519,1777885844000,-389.0,0.00034685,90]
[421560541,1777885844000,-415.0,0.00034712,90]
[421560533,1777885844000,-415.0,0.00034712,90]
[421560551,1777885844000,-415.0,0.00034712,90]
[421560585,1777885844000,-415.0,0.00034712,90]
[421560582,1777885844000,-415.0,0.00034712,90]
[421560583,1777885844000,-415.0,0.00034712,90]
[421560581,1777885844000,-415.0,0.00034712,90]
[421560580,1777885844000,-415.0,0.00034712,90]
[421560578,1777885844000,-415.0,0.00034712,90]
[421560584,1777885844000,-415.0,0.00034712,90]
[421560587,1777885844000,-415.0,0.00034712,90]
[421560586,1777885844000,-415.0,0.00034712,90]
[421560589,1777885844000,-415.0,0.00034712,90]
[421560591,1777885844000,-415.0,0.00034712,90]
[421560588,1777885844000,-415.0,0.00034712,90]
[421560577,1777885844000,-415.0,0.00034712,90]
[421560593,1777885844000,-415.0,0.00034712,90]
[421560596,1777885844000,-415.0,0.00034712,90]
[421560594,1777885844000,-415.0,0.00034712,90]
[421560592,1777885844000,-415.0,0.00034712,90]
[421560598,1777885844000,-415.0,0.00034712,90]
[421560597,1777885844000,-415.0,0.00034712,90]
[421560600,1777885844000,-415.0,0.00034712,90]
[421560599,1777885844000,-415.0,0.00034712,90]
[421560604,1777885844000,-415.0,0.00034712,90]
[421560601,1777885844000,-415.0,0.00034712,90]
[421560602,1777885844000,-415.0,0.00034712,90]
[421560548,1777885844000,-415.0,0.00034712,90]
[421560603,1777885844000,-415.0,0.00034712,90]
[421560595,1777885844000,-415.0,0.00034712,90]
[421560579,1777885844000,-415.0,0.00034712,90]
[421560590,1777885844000,-415.0,0.00034712,90]
[421560573,1777885844000,-415.0,0.00034712,90]
[421560547,1777885844000,-415.0,0.00034712,90]
[421560576,1777885844000,-415.0,0.00034712,90]
[421560552,1777885844000,-415.0,0.00034712,90]
[421560554,1777885844000,-415.0,0.00034712,90]
[421560555,1777885844000,-415.0,0.00034712,90]
[421560553,1777885844000,-415.0,0.00034712,90]
[421560564,1777885844000,-415.0,0.00034712,90]
[421560559,1777885844000,-415.0,0.00034712,90]
[421560560,1777885844000,-415.0,0.00034712,90]
[421560557,1777885844000,-415.0,0.00034712,90]
[421560562,1777885844000,-415.0,0.00034712,90]
[421560563,1777885844000,-415.0,0.00034712,90]
[421560556,1777885844000,-415.0,0.00034712,90]
[421560549,1777885844000,-415.0,0.00034712,90]
[421560561,1777885844000,-415.0,0.00034712,90]
[421560575,1777885844000,-415.0,0.00034712,90]
[421560570,1777885844000,-415.0,0.00034712,90]
[421560574,1777885844000,-415.0,0.00034712,90]
[421560568,1777885844000,-415.0,0.00034712,90]
[421560567,1777885844000,-415.0,0.00034712,90]
[421560571,1777885844000,-415.0,0.00034712,90]
[421560572,1777885844000,-415.0,0.00034712,90]
[421560565,1777885844000,-415.0,0.00034712,90]
[421560566,1777885844000,-415.0,0.00034712,90]
[421560558,1777885844000,-415.0,0.00034712,90]
[421560569,1777885844000,-415.0,0.00034712,90]
[421560647,1777885845000,-2000.0,0.00035164,5]
[421560645,1777885845000,-150.0,0.00035088,7]